bitfinex/quotes_SOLUSD_20250611
["timestamp","ask_amount","ask_price","bid_price","bid_amount"]
[1749633798930,10.12060596,166.67,166.65,24.84]
[1749633801116,10.12060596,166.67,166.62,100.02060596]
[1749633801326,10.12060596,166.67,166.63,24.84]
[1749633802204,10.12060596,166.67,166.63,114.74]
[1749633802704,10.12060596,166.65,166.63,89.9]
[1749633802899,10.12060596,166.64,166.61,24.84]
[1749633803125,10.12060596,166.64,166.61,114.74]
[1749633803512,10.12060596,166.64,166.61,24.84]
[1749633804323,10.12060596,166.63,166.6,116.359]
[1749633804528,10.12060596,166.63,166.6,89.9]
[1749633807432,10.12060596,166.62,166.6,89.9]
[1749633808132,10.12060596,166.62,166.59,114.74]
[1749633809819,10.12060596,166.63,166.59,114.74]
[1749633810211,10.12060596,166.64,166.59,124.86060596]
[1749633810533,36.12060596,166.64,166.59,124.86060596]
[1749633811036,16.14870596,166.72,166.62,10.12060596]
[1749633811210,10.12060596,166.65,166.63,24.84]
[1749633812132,10.12060596,166.64,166.63,24.84]
[1749633812335,10.12060596,166.64,166.61,89.9]
[1749633814829,10.12060596,166.63,166.61,89.9]
[1749633816140,10.12060596,166.63,166.61,89.9]
[1749633816937,10.12060596,166.63,166.6,114.74]
[1749633818340,26.0,166.68,166.6,114.74]
[1749633818644,10.12060596,166.63,166.6,114.74]
[1749633820139,10.12060596,166.64,166.6,114.74]
[1749633820930,26.0,166.68,166.6,114.74]
[1749633821133,10.12060596,166.64,166.6,114.74]
[1749633821637,10.12060596,166.65,166.6,100.02060596]
[1749633821840,10.12060596,166.65,166.61,24.84]
[1749633822219,10.12060596,166.64,166.61,24.84]
[1749633825658,10.12060596,166.64,166.6,114.74]
[1749633828352,26.0,166.68,166.62,10.12060596]
[1749633828649,10.12060596,166.67,166.62,34.96060596]
[1749633828820,10.12060596,166.67,166.62,124.86060596]
[1749633829247,10.12060596,166.66,166.62,114.74]
[1749633829825,6.0986,166.62,166.59,7.40631282]
[1749633830026,6.0986,166.62,166.53,10.12060596]
[1749633830027,26.0,166.57,166.53,10.12060596]
[1749633830240,36.12060596,166.59,166.53,10.12060596]
[1749633830433,26.0,166.59,166.54,10.12060596]
[1749633830846,36.12060596,166.59,166.53,10.12060596]
[1749633831026,10.12060596,166.63,166.58,10.12060596]
[1749633831224,26.0,166.63,166.58,10.12060596]
[1749633831436,26.0,166.63,166.59,24.98]
[1749633831840,36.12060596,166.63,166.59,24.98]
[1749633832448,10.12060596,166.62,166.59,24.98]
[1749633832647,10.12060596,166.6,166.59,24.98]
[1749633832950,10.12060596,166.6,166.57,24.96]
[1749633833550,10.12060596,166.58,166.57,24.96]
[1749633833748,10.12060596,166.58,166.55,24.98]
[1749633833955,26.0,166.6,166.55,24.98]
[1749633834145,10.12060596,166.58,166.55,24.98]
[1749633834450,26.0,166.55,166.46,7.40631282]
[1749633834651,26.0,166.55,166.47,10.12060596]
[1749633834652,26.0,166.52,166.47,10.12060596]
[1749633834951,10.12060596,166.51,166.48,7.40631282]
[1749633835150,10.12060596,166.51,166.48,25.16]
[1749633835350,6.3613,166.58,166.5,10.12060596]
[1749633835541,10.12060596,166.56,166.51,42.68691878]
[1749633835848,10.12060596,166.52,166.48,7.40631282]
[1749633836053,26.0,166.53,166.49,25.18]
[1749633836230,26.0,166.53,166.49,25.2]
[1749633837126,10.12060596,166.5,166.44,12.09456448]
[1749633837331,10.12060596,166.48,166.45,25.2]
[1749633837550,10.12060596,166.48,166.39,44.64964886]
[1749633837551,6.2818,166.47,166.36,7.40631282]
[1749633837747,26.0,166.44,166.37,7.40631282]
[1749633838055,18.64964886,166.46,166.36,7.40631282]
[1749633838369,10.12060596,166.4,166.36,25.48]
[1749633838532,26.0,166.43,166.37,10.12060596]
[1749633838735,26.0,166.43,166.38,10.12060596]
[1749633838736,36.12060596,166.43,166.38,10.12060596]
[1749633839152,36.12060596,166.43,166.37,32.11003209]
[1749633839359,36.12060596,166.43,166.37,24.70371927]
[1749633839554,36.12060596,166.43,166.37,32.11003209]
[1749633839757,36.12060596,166.43,166.37,24.70371927]
[1749633840246,36.12060596,166.43,166.38,10.12060596]
[1749633841260,36.12060596,166.43,166.37,24.70371927]
[1749633841570,36.12060596,166.43,166.33,6.01201521]
[1749633841571,35.88672048,166.36,166.22,8.33333333]
[1749633841743,28.64964886,166.37,166.23,10.12060596]
[1749633841944,18.64964886,166.39,166.25,10.12060596]
[1749633842150,18.64964886,166.39,166.25,36.96060596]
[1749633842346,10.12060596,166.31,166.25,36.96060596]
[1749633843268,10.12060596,166.32,166.26,42.77889471]
[1749633843450,18.64964886,166.39,166.28,10.12060596]
[1749633843644,18.64964886,166.39,166.29,69.61889471]
[1749633843645,10.12060596,166.35,166.29,69.61889471]
[1749633844253,18.64964886,166.39,166.22,13.11989683]
[1749633844254,6.1297,166.32,166.22,13.11989683]
[1749633844445,18.64964886,166.31,166.09,17.98]
[1749633844655,10.12060596,166.24,166.1,37.90060596]
[1749633844863,10.12060596,166.15,166.1,27.78]
[1749633845041,18.64964886,166.23,166.1,27.78]
[1749633845358,10.12060596,166.16,166.1,37.90060596]
[1749633845562,10.12060596,166.15,166.1,27.78]
[1749633845742,18.64964886,166.23,166.09,4.69983101]
[1749633845941,18.64964886,166.23,166.08,39.51970596]
[1749633845942,10.12060596,166.14,166.08,39.51970596]
[1749633846153,18.64964886,166.23,166.09,10.12060596]
[1749633846351,18.64964886,166.23,166.08,29.3991]
[1749633846352,18.64964886,166.23,166.11,10.12060596]
[1749633846551,10.12060596,166.19,166.12,46.44964886]
[1749633846755,10.12060596,166.18,166.12,56.57025482]
[1749633847074,10.0,166.18,166.09,4.91617041]
[1749633847263,6.2029,166.19,165.98,3.13368902]
[1749633847264,34.00909648,166.1,165.98,17.00454824]
[1749633847561,17.00454824,166.01,165.98,4.81879675]
[1749633847764,17.00454824,165.99,165.97,1.5648]
[1749633848149,15.26658666,166.1,165.97,18.56934824]
[1749633848353,17.00454824,166.06,166.0,17.00454824]
[1749633848553,17.00454824,166.05,165.99,45.14454824]
[1749633848957,17.00454824,166.04,165.99,45.14454824]
[1749633849351,17.00454824,166.09,166.03,17.00454824]
[1749633849558,6.2029,166.19,166.06,17.00454824]
[1749633849755,17.00454824,166.11,166.05,35.6541971]
[1749633849960,17.00454824,166.1,166.05,17.00454824]
[1749633850150,17.00454824,166.1,166.04,17.00454824]
[1749633850345,18.64964886,166.18,166.04,17.00454824]
[1749633850545,18.64964886,166.18,166.05,17.00454824]
[1749633850748,17.00454824,166.2,166.07,17.00454824]
[1749633850955,17.00454824,166.12,166.08,28.12]
[1749633851749,17.00454824,166.16,166.1,17.00454824]
[1749633852160,17.00454824,166.17,166.12,17.00454824]
[1749633852467,17.00454824,166.16,166.13,28.1]
[1749633852648,18.64964886,166.24,166.13,28.1]
[1749633852851,17.00454824,166.16,166.13,28.1]
[1749633854170,17.00454824,166.2,166.14,18.64964886]
[1749633854352,17.00454824,166.2,166.14,24.66848629]
[1749633855260,17.00454824,166.15,166.0,6.02398817]
[1749633855461,17.00454824,166.1,166.04,17.00454824]
[1749633855662,17.00454824,166.12,166.04,18.64964886]
[1749633855864,17.00454824,166.1,166.05,17.00454824]
[1749633856768,17.00454824,166.11,166.07,18.64964886]
[1749633856966,17.00454824,166.1,166.08,28.42]
[1749633857166,17.00454824,166.09,166.08,28.42]
[1749633857358,17.00454824,166.1,166.08,28.42]
[1749633857567,17.00454824,166.11,166.08,28.42]
[1749633859174,43.00454824,166.14,166.09,17.00454824]
[1749633860283,43.00454824,166.14,166.08,45.42454824]
[1749633860460,18.64964886,166.23,166.11,17.00454824]
[1749633860660,17.00454824,166.16,166.11,17.00454824]
[1749633861550,18.64964886,166.19,166.11,17.00454824]
[1749633861758,17.00454824,166.16,166.11,17.00454824]
[1749633861967,17.00454824,166.17,166.08,34.44117907]
[1749633862157,17.00454824,166.16,166.11,17.00454824]
[1749633862364,26.0,166.19,166.11,17.00454824]
[1749633862571,18.64964886,166.24,166.16,43.00454824]
[1749633862777,17.00454824,166.22,166.16,43.00454824]
[1749633863081,17.00454824,166.22,166.16,71.26454824]
[1749633863380,17.00454824,166.21,166.16,71.26454824]
[1749633864471,18.64964886,166.27,166.16,28.26]
[1749633864676,17.00454824,166.23,166.17,17.00454824]
[1749633864880,17.00454824,166.22,166.17,17.00454824]
[1749633865880,17.00454824,166.22,166.16,28.26]
[1749633866085,17.00454824,166.22,166.17,17.00454824]
[1749633867476,17.00454824,166.22,166.18,17.00454824]
[1749633867675,26.0,166.26,166.19,17.00454824]
[1749633867676,17.00454824,166.24,166.19,17.00454824]
[1749633868769,17.00454824,166.26,166.21,17.00454824]
[1749633868973,32.1528,166.3,166.17,4.76115094]
[1749633868974,17.00454824,166.28,166.23,43.00454824]
[1749633870765,17.00454824,166.29,166.24,17.00454824]
[1749633872177,18.64964886,166.33,166.23,54.02]
[1749633872178,17.00454824,166.28,166.23,54.02]
[1749633872380,6.0134,166.35,166.26,43.00454824]
[1749633872578,6.0134,166.35,166.27,17.00454824]
[1749633872579,17.00454824,166.32,166.27,17.00454824]
[1749633873773,17.00454824,166.33,166.28,17.00454824]
[1749633873968,17.00454824,166.33,166.29,27.94]
[1749633874275,17.00454824,166.31,166.29,27.94]
[1749633874478,17.00454824,166.32,166.29,27.94]
[1749633875289,18.64964886,166.37,166.29,27.94]
[1749633875290,7.817,166.4,166.31,26.0]
[1749633875587,24.82154824,166.4,166.29,53.94]
[1749633875813,17.00454824,166.32,166.29,53.94]
[1749633875992,17.00454824,166.33,166.29,53.94]
[1749633877688,17.00454824,166.35,166.3,17.00454824]
[1749633878099,17.00454824,166.36,166.31,17.00454824]
[1749633880007,17.00454824,166.35,166.3,17.00454824]
[1749633880295,17.00454824,166.34,166.29,70.94454824]
[1749633881197,17.00454824,166.34,166.3,17.00454824]
[1749633882198,17.00454824,166.35,166.3,17.00454824]
[1749633883579,17.00454824,166.34,166.3,17.00454824]
[1749633884207,17.00454824,166.35,166.3,17.00454824]
[1749633885797,23.30254824,166.4,166.31,17.00454824]
[1749633885988,17.00454824,166.35,166.31,17.00454824]
[1749633886187,17.00454824,166.36,166.31,17.00454824]
[1749633889201,17.00454824,166.37,166.32,17.00454824]
[1749633889583,17.00454824,166.35,166.31,17.00454824]
[1749633890688,17.00454824,166.36,166.31,17.00454824]
[1749633892075,17.00454824,166.37,166.31,17.00454824]
[1749633893282,17.00454824,166.36,166.29,53.94]
[1749633893488,17.00454824,166.36,166.31,17.00454824]
[1749633894400,32.298,166.4,166.31,17.00454824]
[1749633894793,17.00454824,166.36,166.31,17.00454824]
[1749633895192,32.298,166.4,166.31,10.16523295]
[1749633895394,10.16523295,166.36,166.31,10.16523295]
[1749633898009,10.16523295,166.36,166.3,10.16523295]
[1749633899486,10.16523295,166.37,166.31,10.16523295]
[1749633899703,10.16523295,166.37,166.31,36.16523295]
[1749633900419,10.16523295,166.36,166.31,26.0]
[1749633900798,10.16523295,166.36,166.31,36.16523295]
[1749633901114,16.46323295,166.4,166.24,7.5775]
[1749633901115,10.16523295,166.32,166.24,7.5775]
[1749633901290,16.46323295,166.4,166.26,10.16523295]
[1749633901291,10.16523295,166.31,166.26,10.16523295]
[1749633901615,10.16523295,166.3,166.26,27.22]
[1749633902506,10.16523295,166.3,166.26,53.22]
[1749633902707,10.16523295,166.3,166.26,26.0]
[1749633902887,10.16523295,166.28,166.24,11.68103295]
[1749633903089,10.16523295,166.28,166.24,27.18]
[1749633903315,10.16523295,166.26,166.2,8.0977]
[1749633903504,10.16523295,166.25,166.21,27.18]
[1749633903704,10.16523295,166.27,166.22,10.16523295]
[1749633903898,10.16523295,166.28,166.23,10.16523295]
[1749633904193,10.16523295,166.31,166.26,10.16523295]
[1749633904393,16.26523295,166.32,166.27,10.16523295]
[1749633906009,10.16523295,166.31,166.26,10.16523295]
[1749633907206,10.16523295,166.3,166.25,10.16523295]
[1749633908193,10.16523295,166.29,166.24,10.16523295]
[1749633911817,18.64964886,166.31,166.27,10.16523295]
[1749633912518,26.0,166.3,166.27,10.16523295]
[1749633913924,26.0,166.28,166.2,1.5106]
[1749633914099,26.0,166.28,166.25,10.16523295]
[1749633915530,26.0,166.28,166.17,4.76115094]
[1749633915531,26.0,166.23,166.17,4.76115094]
[1749633915708,1.536,166.28,166.22,10.16523295]
[1749633916027,6.1,166.32,166.25,10.16523295]
[1749633916028,26.0,166.27,166.25,10.16523295]
[1749633916197,26.0,166.27,166.26,10.16523295]
[1749633918421,7.636,166.32,166.26,10.16523295]
[1749633918629,18.64964886,166.31,166.24,10.16523295]
[1749633918924,18.64964886,166.31,166.28,10.16523295]
[1749633919725,18.64964886,166.31,166.22,26.0]
[1749633919921,10.16523295,166.29,166.24,10.16523295]
[1749633920105,10.16523295,166.27,166.22,10.16523295]
[1749633921818,28.81488181,166.26,166.21,10.16523295]
[1749633922128,10.16523295,166.23,166.18,10.16523295]
[1749633922309,18.64964886,166.26,166.2,10.16523295]
[1749633922509,28.81488181,166.26,166.21,10.16523295]
[1749633922914,10.16523295,166.25,166.2,10.16523295]
[1749633923307,18.64964886,166.23,166.17,10.16523295]
[1749633923507,10.16523295,166.22,166.17,10.16523295]
[1749633923707,10.16523295,166.22,166.14,26.0]
[1749633923708,28.81488181,166.23,166.18,10.16523295]
[1749633924935,28.81488181,166.23,166.18,10.16523295]
[1749633928425,18.64964886,166.23,166.16,10.16523295]
[1749633928633,18.64964886,166.23,166.18,10.16523295]
[1749633928840,10.0,166.29,166.21,10.16523295]
[1749633928841,26.0,166.26,166.21,10.16523295]
[1749633929032,26.0,166.26,166.22,10.16523295]
[1749633929914,18.64964886,166.28,166.24,10.16523295]
[1749633931339,26.0,166.3,166.26,10.16523295]
[1749633931340,18.64964886,166.3,166.26,10.16523295]
[1749633931936,28.81488181,166.3,166.26,10.16523295]
[1749633932105,18.64964886,166.29,166.25,10.16523295]
[1749633932308,28.81488181,166.29,166.24,10.16523295]
[1749633932715,10.16523295,166.27,166.22,10.16523295]
[1749633932916,18.64964886,166.3,166.21,26.0]
[1749633933134,10.16523295,166.27,166.21,26.0]
[1749633933442,10.16523295,166.27,166.22,10.16523295]
[1749633934008,10.16523295,166.26,166.21,26.0]
[1749633934313,10.16523295,166.24,166.19,10.16523295]
[1749633934626,44.64964886,166.29,166.2,10.16523295]
[1749633934941,10.16523295,166.25,166.2,10.16523295]
[1749633935311,10.16523295,166.24,166.19,36.16523295]
[1749633935544,10.16523295,166.24,166.19,10.16523295]
[1749633936246,10.16523295,166.25,166.2,10.16523295]
[1749633936413,10.16523295,166.24,166.19,10.16523295]
[1749633936612,10.16523295,166.23,166.18,10.16523295]
[1749633937134,28.81488181,166.22,166.17,10.16523295]
[1749633938141,6.3137,166.26,166.2,10.16523295]
[1749633938142,26.0,166.24,166.2,10.16523295]
[1749633938311,1.5797,166.29,166.23,10.16523295]
[1749633938507,18.64964886,166.28,166.24,10.16523295]
[1749633939607,18.64964886,166.29,166.25,10.16523295]
[1749633943657,18.64964886,166.29,166.2,26.0]
[1749633943818,10.16523295,166.28,166.19,1.6099]
[1749633944145,6.0777,166.31,166.19,1.6099]
[1749633944146,28.81488181,166.25,166.19,1.6099]
[1749633944335,28.81488181,166.25,166.19,10.16523295]
[1749633944542,28.81488181,166.25,166.2,10.16523295]
[1749633946951,28.81488181,166.25,166.15,28.0337]
[1749633947161,18.64964886,166.23,166.19,10.16523295]
[1749633948560,18.64964886,166.23,166.2,10.16523295]
[1749633948734,18.64964886,166.23,166.16,10.16523295]
[1749633948935,18.64964886,166.23,166.2,10.16523295]
[1749633949351,18.64964886,166.23,166.17,26.0]
[1749633949668,10.16523295,166.22,166.17,10.16523295]
[1749633950158,10.16523295,166.21,166.13,6.6558]
[1749633950544,10.16523295,166.21,166.16,10.16523295]
[1749633950730,18.64964886,166.21,166.17,10.16523295]
[1749633951355,28.81488181,166.21,166.13,9.85123832]
[1749633951560,28.81488181,166.21,166.16,10.16523295]
[1749633952264,18.64964886,166.24,166.16,10.16523295]
[1749633952440,18.64964886,166.21,166.17,10.16523295]
[1749633953752,28.81488181,166.24,166.19,10.16523295]
[1749633953951,28.81488181,166.24,166.17,10.16523295]
[1749633953952,10.16523295,166.22,166.17,10.16523295]
[1749633954128,10.16523295,166.22,166.16,10.16523295]
[1749633955742,10.16523295,166.21,166.16,10.16523295]
[1749633956141,10.16523295,166.21,166.13,29.19543832]
[1749633956341,10.16523295,166.18,166.13,10.16523295]
[1749633956525,10.16523295,166.17,166.12,10.16523295]
[1749633956938,18.64964886,166.2,166.13,10.16523295]
[1749633957142,18.64964886,166.17,166.13,10.16523295]
[1749633958155,18.64964886,166.18,166.14,10.16523295]
[1749633959358,10.16523295,166.18,166.14,10.16523295]
[1749633959734,18.64964886,166.19,166.14,10.16523295]
[1749633959958,10.16523295,166.18,166.13,10.16523295]
[1749633961439,10.16523295,166.17,166.12,10.16523295]
[1749633961636,10.16523295,166.15,166.1,10.16523295]
[1749633961838,10.16523295,166.14,166.09,10.16523295]
[1749633962050,10.16523295,166.13,166.07,9.05467571]
[1749633962447,18.64964886,166.16,166.09,10.16523295]
[1749633962651,10.16523295,166.13,166.09,10.16523295]
[1749633963361,10.16523295,166.14,166.09,10.16523295]
[1749633964663,26.0,166.13,166.09,10.16523295]
[1749633965271,26.0,166.13,166.07,4.85454261]
[1749633965448,26.0,166.13,166.09,10.16523295]
[1749633966338,26.0,166.13,166.07,4.85454261]
[1749633966537,26.0,166.13,166.09,10.16523295]
[1749633967557,26.0,166.11,166.08,10.16523295]
[1749633967751,36.16523295,166.12,166.07,10.16523295]
[1749633967937,10.16523295,166.11,166.07,10.16523295]
[1749633968743,28.81488181,166.1,166.03,1.5997]
[1749633968940,10.16523295,166.08,166.03,11.76493295]
[1749633969342,10.16523295,166.08,166.0,9.66460461]
[1749633969543,10.16523295,166.08,166.03,10.16523295]
[1749633969969,26.0,166.04,165.99,1.5227]
[1749633970275,36.16523295,166.07,166.02,10.16523295]
[1749633970439,10.16523295,166.06,165.99,1.5227]
[1749633970642,28.81488181,166.05,166.0,10.16523295]
[1749633971039,18.64964886,166.05,166.01,10.16523295]
[1749633971242,18.64964886,166.05,165.99,1.5227]
[1749633971463,18.64964886,166.05,166.01,10.16523295]
[1749633972465,1.6507,166.13,166.04,10.16523295]
[1749633972665,18.64964886,166.08,166.04,10.16523295]
[1749633972874,26.0,166.09,166.05,10.16523295]
[1749633973561,18.64964886,166.09,166.05,10.16523295]
[1749633975069,26.0,166.07,166.04,10.16523295]
[1749633975656,26.0,166.12,166.05,10.16523295]
[1749633975854,10.16523295,166.14,166.08,10.16523295]
[1749633976053,18.64964886,166.13,166.1,10.16523295]
[1749633977084,26.0,166.1,166.08,10.16523295]
[1749633977665,18.64964886,166.1,166.06,10.16523295]
[1749633977872,26.0,166.11,166.08,10.16523295]
[1749633978065,26.0,166.11,166.09,10.16523295]
[1749633978266,26.0,166.11,166.1,10.16523295]
[1749633978667,28.81488181,166.16,166.1,10.16523295]
[1749633978982,26.0,166.13,166.11,10.16523295]
[1749633979185,26.0,166.12,166.1,10.16523295]
[1749633979873,18.64964886,166.14,166.1,10.16523295]
[1749633980076,18.64964886,166.14,166.09,10.16523295]
[1749633980279,18.64964886,166.14,166.07,1.6067]
[1749633980482,28.81488181,166.14,166.09,10.16523295]
[1749633981785,26.0,166.15,166.08,10.16523295]
[1749633981786,18.64964886,166.12,166.08,10.16523295]
[1749633982192,18.64964886,166.12,166.07,1.6067]
[1749633982482,18.64964886,166.12,166.08,10.16523295]
[1749633983469,18.64964886,166.12,166.09,10.16523295]
[1749633983967,18.64964886,166.12,166.07,1.6067]
[1749633984184,10.16523295,166.1,166.01,1.6327]
[1749633984382,18.64964886,166.12,166.03,10.16523295]
[1749633984383,28.81488181,166.08,166.03,10.16523295]
[1749633985086,18.64964886,166.06,166.02,10.16523295]
[1749633985579,28.81488181,166.06,166.01,11.79793295]
[1749633991396,10.16523295,166.08,166.03,10.16523295]
[1749633991573,10.16523295,166.09,166.04,10.16523295]
[1749633991773,18.64964886,166.08,166.04,10.16523295]
[1749633991975,18.64964886,166.08,166.01,1.6327]
[1749633991976,10.16523295,166.11,166.06,10.16523295]
[1749633992188,146.7,166.14,166.07,10.16523295]
[1749633992189,18.64964886,166.13,166.07,10.16523295]
[1749633992384,18.64964886,166.1,166.06,10.16523295]
[1749633993684,18.64964886,166.11,166.07,10.16523295]
[1749633994089,18.64964886,166.12,166.08,10.16523295]
[1749633996092,18.64964886,166.12,166.02,149.26907571]
[1749633996295,54.81488181,166.12,166.07,10.16523295]
[1749633996803,26.0,166.09,166.07,10.16523295]
[1749633997390,26.0,166.09,166.08,10.16523295]
[1749633998908,18.64964886,166.12,166.08,10.16523295]
[1749633999210,18.64964886,166.16,166.11,10.16523295]
[1749633999384,28.81488181,166.16,166.11,10.16523295]
[1749633999583,26.0,166.13,166.11,10.16523295]
[1749634000183,26.0,166.13,166.06,7.46907571]
[1749634000378,26.0,166.13,166.11,10.16523295]
[1749634000914,26.0,166.12,166.1,10.16523295]
[1749634001407,26.0,166.12,166.06,97.36907571]
[1749634001408,26.0,166.1,166.07,10.16523295]
[1749634001721,36.16523295,166.1,166.05,10.16523295]
[1749634003210,44.64964886,166.09,166.03,10.16523295]
[1749634003719,44.64964886,166.09,166.04,10.16523295]
[1749634003720,54.81488181,166.09,166.04,10.16523295]
[1749634004020,54.81488181,166.09,166.01,1.6327]
[1749634004187,54.81488181,166.09,166.04,10.16523295]
[1749634005520,54.81488181,166.09,166.01,9.10177571]
[1749634005709,54.81488181,166.09,166.04,10.16523295]
[1749634006692,1.6327,166.17,166.07,10.16523295]
[1749634007001,26.0,166.11,166.05,7.46907571]
[1749634007203,36.16523295,166.11,166.06,10.16523295]
[1749634007606,18.64964886,166.11,166.07,10.16523295]
[1749634008128,10.16523295,166.09,166.04,7.46907571]
[1749634008305,10.16523295,166.09,166.04,10.16523295]
[1749634008719,10.16523295,166.08,166.02,97.36907571]
[1749634009016,10.16523295,166.08,166.03,10.16523295]
[1749634010826,10.16523295,166.07,166.02,100.06523295]
[1749634011032,10.16523295,166.07,166.02,10.16523295]
[1749634011401,10.16523295,166.08,166.03,10.16523295]
[1749634013935,10.16523295,166.08,166.01,9.11884527]
[1749634014122,10.16523295,166.08,166.03,10.16523295]
[1749634015428,10.16523295,166.07,166.02,10.16523295]
[1749634017522,18.64964886,166.07,166.02,10.16523295]
[1749634018020,44.64964886,166.07,166.02,10.16523295]
[1749634019235,26.0,166.07,166.04,10.16523295]
[1749634019425,26.0,166.07,166.03,10.16523295]
[1749634020940,36.16523295,166.07,166.02,10.16523295]
[1749634021236,36.16523295,166.07,166.01,1.6327]
[1749634021237,36.16523295,166.07,166.01,11.79793295]
[1749634021527,36.16523295,166.07,166.02,10.16523295]
[1749634023229,26.0,166.07,166.04,10.16523295]
[1749634023726,36.16523295,166.07,166.02,7.48614527]
[1749634024027,10.16523295,166.06,166.01,10.16523295]
[1749634024747,28.81488181,166.05,166.0,17.65137822]
[1749634024945,26.0,166.01,165.97,19.21827822]
[1749634025428,26.0,166.01,165.98,10.16523295]
[1749634026029,26.0,166.01,165.97,1.5669]
[1749634026242,26.0,166.01,165.97,10.16523295]
[1749634026816,26.0,166.01,165.98,10.16523295]
[1749634027916,26.0,166.01,165.97,10.16523295]
[1749634030026,26.0,166.01,165.95,10.16523295]
[1749634030027,10.16523295,166.0,165.95,10.16523295]
[1749634031521,10.16523295,166.0,165.93,97.38614527]
[1749634031740,10.16523295,166.0,165.95,10.16523295]
[1749634031916,11.82953295,166.0,165.93,7.48614527]
[1749634032119,11.82953295,166.0,165.86,7.48614527]
[1749634032120,26.0,165.9,165.86,7.48614527]
[1749634032339,28.81488181,165.89,165.85,8.33333333]
[1749634032840,1.6352,165.92,165.85,8.33333333]
[1749634032841,26.0,165.86,165.85,8.33333333]
[1749634033339,26.0,165.86,165.85,12.80864935]
[1749634033524,26.0,165.86,165.85,12.80908235]
[1749634033723,28.81488181,165.89,165.85,12.80908235]
[1749634033934,18.64964886,165.89,165.86,4.46711432]
[1749634034127,18.64964886,165.89,165.85,18.49856628]
[1749634034329,18.64964886,165.89,165.86,4.46703334]
[1749634034521,18.64964886,165.89,165.87,4.46703334]
[1749634034720,18.64964886,165.89,165.85,18.49856628]
[1749634034928,18.64964886,165.89,165.86,4.46702614]
[1749634035160,44.64964886,165.86,165.85,8.33333333]
[1749634035335,28.81488181,165.86,165.85,8.33333333]
[1749634035524,54.81488181,165.86,165.85,8.33333333]
[1749634035726,28.81488181,165.86,165.85,8.33333333]
[1749634035935,54.81488181,165.86,165.85,8.33333333]
[1749634036129,9.8481239,165.89,165.85,8.33333333]
[1749634036130,6.1326,165.89,165.85,8.33333333]
[1749634036327,54.81488181,165.86,165.85,8.33333333]
[1749634039335,54.81488181,165.86,165.85,8.33333333]
[1749634040341,5.75989893,165.93,165.85,18.49856628]
[1749634040648,28.81488181,165.86,165.85,8.33333333]
[1749634041148,10.16523295,165.86,165.85,8.33333333]
[1749634041545,45.07301476,165.86,165.85,8.33333333]
[1749634041739,34.90778181,165.86,165.85,8.33333333]
[1749634043566,18.64964886,165.86,165.85,8.33333333]
[1749634043850,28.81488181,165.86,165.85,8.33333333]
[1749634045371,155.41461983,165.94,165.85,8.33333333]
[1749634045650,18.64964886,165.87,165.85,8.33333333]
[1749634046347,28.81488181,165.87,165.85,8.33333333]
[1749634046528,18.64964886,165.87,165.85,8.33333333]
[1749634046724,28.81488181,165.87,165.85,8.33333333]
[1749634048029,18.64964886,165.87,165.85,8.33333333]
[1749634059242,28.81488181,165.87,165.85,8.33333333]
[1749634060366,26.0,165.89,165.85,8.33333333]
[1749634060569,26.0,165.86,165.85,8.33333333]
[1749634060740,44.64964886,165.86,165.85,8.33333333]
[1749634061075,54.81488181,165.86,165.85,8.33333333]
[1749634061841,44.64964886,165.86,165.85,8.33333333]
[1749634062153,54.81488181,165.86,165.85,8.33333333]
[1749634066665,44.64964886,165.86,165.85,8.33333333]
[1749634066870,54.81488181,165.86,165.85,8.33333333]
[1749634071846,44.64964886,165.86,165.85,8.33333333]
[1749634072060,54.81488181,165.86,165.85,8.33333333]
[1749634072255,26.0,165.82,165.81,10.16523295]
[1749634072870,18.64964886,165.85,165.81,10.16523295]
[1749634073056,44.64964886,165.85,165.81,10.16523295]
[1749634074083,26.0,165.83,165.82,10.16523295]
[1749634074674,26.0,165.83,165.81,10.16523295]
[1749634076148,18.64964886,165.86,165.82,10.16523295]
[1749634076354,44.64964886,165.86,165.82,10.16523295]
[1749634077251,54.81488181,165.86,165.81,7.48614527]
[1749634077477,54.81488181,165.86,165.82,7.48614527]
[1749634077781,44.64964886,165.86,165.82,17.65137822]
[1749634079271,18.64964886,165.88,165.82,7.48614527]
[1749634079577,54.81488181,165.88,165.83,10.16523295]
[1749634079749,18.64964886,165.86,165.82,17.65137822]
[1749634080175,28.81488181,165.86,165.81,17.65137822]
[1749634080356,10.16523295,165.85,165.81,7.48614527]
[1749634080554,26.0,165.82,165.81,7.48614527]
[1749634080768,26.0,165.81,165.79,17.65137822]